bitfinex-derivatives/quotes_BTCF0:USTF0_20251110
["timestamp","ask_amount","ask_price","bid_price","bid_amount"]
[1762740171715,0.51856458,105650.0,105640.0,0.00514141]
[1762740176211,0.50738458,105650.0,105640.0,0.06393141]
[1762740176816,0.51856458,105650.0,105640.0,0.06393141]
[1762740177123,0.51856458,105650.0,105640.0,0.05065141]
[1762740179117,0.1487135,105630.0,105620.0,0.11341298]
[1762740179317,0.87251153,105630.0,105620.0,0.11341298]
[1762740179514,0.86379153,105630.0,105620.0,0.15116972]
[1762740180419,0.86679153,105630.0,105620.0,0.15116972]
[1762740180828,0.86679153,105630.0,105620.0,0.05879]
[1762740181020,0.86679153,105630.0,105620.0,0.15116972]
[1762740181226,0.86779153,105630.0,105620.0,0.15116972]
[1762740181424,0.82249143,105630.0,105620.0,0.15116972]
[1762740181722,0.72779803,105630.0,105620.0,0.5504551]
[1762740181927,0.36699803,105630.0,105620.0,0.5504551]
[1762740182230,0.46169143,105630.0,105620.0,0.5504551]
[1762740183031,0.36699803,105630.0,105620.0,0.5504551]
[1762740183831,0.46169143,105630.0,105620.0,0.5554551]
[1762740184217,0.50699143,105630.0,105620.0,0.4607527]
[1762740184421,0.50699143,105630.0,105620.0,0.2240727]
[1762740184622,0.50699143,105630.0,105620.0,0.3714727]
[1762740184823,0.50699143,105630.0,105620.0,0.41857704]
[1762740186240,0.51571143,105630.0,105620.0,0.13169298]
[1762740186423,0.87651143,105630.0,105620.0,0.11841298]
[1762740186753,0.87651143,105630.0,105620.0,0.13169298]
[1762740187235,0.86779143,105630.0,105620.0,0.13169298]
[1762740188326,0.87651143,105630.0,105620.0,0.11841298]
[1762740188526,0.86779143,105630.0,105620.0,0.13169298]
[1762740189133,0.86779143,105630.0,105620.0,0.06379]
[1762740189436,0.86779143,105630.0,105620.0,0.1317215]
[1762740189628,0.88847097,105630.0,105620.0,0.06379]
[1762740190428,0.89719097,105630.0,105620.0,0.06379]
[1762740190628,0.89719097,105630.0,105620.0,0.05051]
[1762740192027,0.89719097,105630.0,105620.0,0.06379]
[1762740192542,0.02467954,105630.0,105620.0,0.7051724]
[1762740192732,0.00014141,105640.0,105630.0,0.1534834]
[1762740192927,9.085e-05,105650.0,105640.0,0.05879]
[1762740193233,9.085e-05,105650.0,105640.0,0.3901145]
[1762740193533,9.085e-05,105650.0,105640.0,1.0909145]
[1762740193738,0.45659491,105680.0,105670.0,0.05879]
[1762740193939,0.45659491,105680.0,105670.0,0.19827406]
[1762740193940,0.43606842,105680.0,105670.0,0.19827406]
[1762740194146,0.06691256,105710.0,105680.0,0.83656]
[1762740194341,0.01411,105720.0,105710.0,0.13948406]
[1762740194644,0.01411,105720.0,105710.0,0.23630389]
[1762740194645,0.05941,105720.0,105710.0,0.23630389]
[1762740194834,0.05941,105720.0,105710.0,0.60278389]
[1762740194835,0.01411,105720.0,105710.0,0.60278389]
[1762740195142,0.09803788,105720.0,105710.0,0.61710389]
[1762740195333,0.01411,105720.0,105710.0,0.85358389]
[1762740195534,0.09803788,105720.0,105710.0,0.61710389]
[1762740195736,0.01411,105720.0,105710.0,0.85358389]
[1762740196335,0.11403788,105720.0,105710.0,0.61810389]
[1762740196535,0.06825,105720.0,105710.0,1.13458389]
[1762740196732,0.00014141,105730.0,105720.0,0.0946128]
[1762740196937,0.00014141,105730.0,105720.0,0.47761083]
[1762740197142,0.00014141,105730.0,105720.0,0.85409083]
[1762740197342,0.00014141,105730.0,105720.0,0.69409083]
[1762740197540,0.00014141,105730.0,105720.0,1.22429083]
[1762740197744,0.00014141,105730.0,105720.0,0.98781083]
[1762740197934,0.00014141,105730.0,105720.0,1.22429083]
[1762740198135,0.01411,105740.0,105730.0,0.0946039]
[1762740198342,0.01411,105740.0,105730.0,0.59708599]
[1762740198534,0.0453,105750.0,105740.0,0.0945894]
[1762740198844,0.0453,105750.0,105740.0,0.50248209]
[1762740199342,0.0453,105750.0,105740.0,0.59707709]
[1762740200137,0.0473,105750.0,105740.0,0.61307709]
[1762740200632,0.0483,105750.0,105740.0,0.52348209]
[1762740201042,0.0483,105750.0,105740.0,0.16268209]
[1762740201043,0.4091,105750.0,105740.0,0.16268209]
[1762740201445,0.4091,105750.0,105740.0,0.23913383]
[1762740201944,0.4091,105750.0,105740.0,0.24413383]
[1762740202644,0.41129803,105750.0,105740.0,0.00573267]
[1762740203142,0.02733803,105750.0,105740.0,0.66141173]
[1762740203538,0.42124803,105750.0,105740.0,0.20601673]
[1762740203743,0.42124803,105750.0,105740.0,0.14521673]
[1762740203946,0.51583403,105750.0,105740.0,0.14521673]
[1762740204247,1.11583403,105750.0,105740.0,2.67e-06]
[1762740204444,0.181665,105740.0,105730.0,0.00014141]
[1762740204747,0.54466303,105740.0,105730.0,1.41e-06]
[1762740204946,0.1620939,105730.0,105720.0,0.13948406]
[1762740205144,0.52509193,105730.0,105720.0,0.13948406]
[1762740205649,0.40777097,105730.0,105720.0,0.13948406]
[1762740206748,0.50337487,105730.0,105720.0,0.14848406]
[1762740207250,0.40777097,105730.0,105720.0,0.13948406]
[1762740207547,0.41377097,105730.0,105720.0,0.14448406]
[1762740207744,0.41377097,105730.0,105720.0,0.30667696]
[1762740207945,0.05297097,105730.0,105720.0,0.66747696]
[1762740208249,0.06749,105720.0,105710.0,0.60034636]
[1762740208436,0.06968803,105720.0,105710.0,0.60034636]
[1762740209047,0.00219803,105720.0,105710.0,0.60034636]
[1762740209249,0.00219803,105720.0,105710.0,0.7910847]
[1762740209549,0.00319803,105720.0,105710.0,0.7970847]
[1762740209950,0.001,105720.0,105710.0,0.7970847]
[1762740210337,0.003,105720.0,105710.0,1.0185647]
[1762740210537,0.00014141,105740.0,105710.0,1.04787042]
[1762740210748,0.00233944,105740.0,105730.0,0.66246796]
[1762740211049,0.00014141,105740.0,105730.0,0.66246796]
[1762740211249,0.00014141,105740.0,105730.0,0.68246796]
[1762740211449,0.00014141,105740.0,105730.0,1.04326796]
[1762740211755,0.00314141,105740.0,105730.0,1.32326796]
[1762740212051,0.00314141,105740.0,105730.0,1.55970796]
[1762740212245,0.42829,105770.0,105760.0,0.06758]
[1762740212444,0.52505613,105770.0,105760.0,0.06758]
[1762740212640,0.52505593,105770.0,105760.0,0.06758]
[1762740212845,0.08707,105760.0,105750.0,0.34398406]
[1762740213040,0.1891985,105740.0,105710.0,0.006]
[1762740213243,0.81841073,105720.0,105710.0,0.00088193]
[1762740213640,0.0946216,105710.0,105700.0,0.01971]
[1762740213848,0.79569812,105710.0,105700.0,0.01971]
[1762740214051,0.79569812,105710.0,105700.0,0.22677406]
[1762740214757,0.79569812,105710.0,105700.0,0.01971]
[1762740215054,0.81069812,105710.0,105700.0,0.02171]
[1762740215950,0.81069812,105710.0,105700.0,0.002]
[1762740216254,0.82569812,105710.0,105700.0,0.003]
[1762740218156,0.81433652,105710.0,105700.0,0.003]
[1762740218351,0.81433652,105710.0,105700.0,0.06067]
[1762740218548,0.81433652,105710.0,105700.0,0.09529]
[1762740218851,0.81433652,105710.0,105700.0,0.23477406]
[1762740222654,0.75379803,105710.0,105700.0,0.23477406]
[1762740222858,0.84841963,105710.0,105700.0,0.23477406]
[1762740223550,0.75379803,105710.0,105700.0,0.23477406]
[1762740223750,0.03,105710.0,105700.0,1.31020466]
[1762740223952,0.00014141,105720.0,105700.0,1.58020466]
[1762740224153,0.4553901,105750.0,105740.0,0.08729]
[1762740224463,0.48248813,105750.0,105740.0,0.08729]
[1762740225362,0.49848813,105750.0,105740.0,0.08829]
[1762740226561,0.51048813,105750.0,105740.0,0.09029]
[1762740227064,0.41589803,105750.0,105740.0,0.09029]
[1762740227262,0.0529,105750.0,105740.0,0.09029]
[1762740227466,0.0529,105750.0,105740.0,0.5656848]
[1762740227661,0.0529,105750.0,105740.0,0.45109]
[1762740227862,0.05509803,105750.0,105740.0,0.47109]
[1762740228070,0.0437419,105750.0,105740.0,0.47109]
[1762740228852,0.04154387,105750.0,105740.0,0.5656848]
[1762740229164,0.03014387,105750.0,105740.0,0.5656848]
[1762740229364,0.03014387,105750.0,105740.0,1.1656848]
[1762740229558,0.03014387,105750.0,105740.0,1.5220848]
[1762740229762,0.00014141,105760.0,105750.0,0.0688]
[1762740229962,0.00233944,105760.0,105750.0,0.56908406]
[1762740230764,0.4553683,105770.0,105750.0,0.56908406]
[1762740230765,0.43500465,105770.0,105760.0,0.08983]
[1762740230959,0.43573465,105770.0,105760.0,0.14762672]
[1762740232160,0.43773465,105770.0,105760.0,0.14762672]
[1762740232468,0.43773465,105770.0,105760.0,0.12217874]
[1762740232659,0.43773465,105770.0,105760.0,0.08689874]
[1762740233465,0.43873465,105770.0,105760.0,0.06174803]
[1762740233659,0.43873465,105770.0,105760.0,0.00719803]
[1762740234461,0.0945767,105760.0,105750.0,0.00014141]
[1762740234660,0.4561067,105760.0,105750.0,0.00233944]
[1762740234858,0.4561067,105760.0,105750.0,0.02759857]
[1762740235065,0.4561067,105760.0,105750.0,0.00233944]
[1762740235460,0.4561067,105760.0,105750.0,0.07113944]
[1762740235765,0.4561067,105760.0,105750.0,0.04185944]
[1762740236267,0.4581067,105760.0,105750.0,0.05985944]
[1762740236658,0.4581067,105760.0,105750.0,0.02633944]
[1762740236859,0.4661067,105760.0,105750.0,0.00933944]
[1762740237469,0.4661067,105760.0,105750.0,0.00333944]
[1762740238174,0.4661067,105760.0,105720.0,0.32260656]
[1762740238364,0.3608,105730.0,105720.0,0.32260656]
[1762740238565,0.36153,105730.0,105720.0,0.32480459]
[1762740238864,0.00073,105730.0,105720.0,0.32480459]
[1762740239174,0.36094141,105740.0,105730.0,0.1634036]
[1762740239373,0.45626601,105740.0,105730.0,0.07099803]
[1762740239974,0.00087141,105740.0,105730.0,0.07099803]
[1762740240474,0.00087141,105740.0,105730.0,0.16560163]
[1762740240671,0.00187141,105740.0,105730.0,0.16960163]
[1762740240869,0.00187141,105740.0,105730.0,0.17060163]
[1762740241168,0.3052,105750.0,105730.0,0.17060163]
[1762740241369,0.07961,105770.0,105760.0,0.08983]
[1762740241574,0.0114,105770.0,105760.0,0.23151209]
[1762740241873,0.5349778,105770.0,105760.0,0.23151209]
[1762740242976,0.5469778,105770.0,105760.0,0.23251209]
[1762740243367,0.1861778,105770.0,105760.0,0.23251209]
[1762740243667,0.1741778,105770.0,105760.0,0.23151209]
[1762740243873,0.1751778,105770.0,105760.0,0.23551209]
[1762740244265,0.1751778,105770.0,105760.0,0.23851209]
[1762740244974,0.1751778,105770.0,105760.0,0.19124892]
[1762740245175,0.5359778,105770.0,105760.0,0.00919803]
[1762740245670,0.5359778,105770.0,105760.0,0.007]
[1762740245862,0.1627868,105760.0,105750.0,0.00014141]
[1762740246068,0.5235868,105760.0,105750.0,0.00233944]
[1762740246272,0.1628046,105740.0,105730.0,0.0688]
[1762740246470,0.5236046,105740.0,105730.0,0.07099803]
[1762740246667,0.5236046,105740.0,105730.0,0.16321892]
[1762740246877,0.42901,105740.0,105730.0,0.25782252]
[1762740247264,0.42915141,105750.0,105740.0,0.1844246]
[1762740247461,0.16293711,105750.0,105740.0,0.18424892]
[1762740247677,0.52373711,105750.0,105740.0,0.18424892]
[1762740248172,0.52373711,105750.0,105740.0,0.00219803]
[1762740248580,0.1628046,105740.0,105730.0,0.011]
[1762740248766,0.5246046,105740.0,105730.0,0.01619803]
[1762740249373,0.5236046,105740.0,105730.0,0.01319803]
[1762740249579,0.5236046,105740.0,105730.0,0.00219803]
[1762740250479,0.5246046,105740.0,105730.0,0.00719803]
[1762740251476,0.5246046,105740.0,105730.0,0.005]
[1762740251681,0.5246045,105740.0,105730.0,0.13293892]
[1762740251875,0.43001,105740.0,105730.0,0.26282232]
[1762740252075,0.43001,105740.0,105730.0,0.16821892]
[1762740252076,0.5246045,105740.0,105730.0,0.16821892]
[1762740252475,0.5246045,105740.0,105730.0,0.00719803]
[1762740257190,0.5246045,105740.0,105730.0,0.03249143]
[1762740258788,0.1638045,105740.0,105730.0,0.19903304]
[1762740259087,0.5246045,105740.0,105730.0,0.19903304]
[1762740260085,0.5246045,105740.0,105730.0,0.16579304]
[1762740260282,0.5246045,105740.0,105730.0,0.21664922]
[1762740260585,0.5246045,105740.0,105730.0,0.04110215]
[1762740261790,0.5246045,105740.0,105730.0,0.09195833]
[1762740262387,0.5246045,105740.0,105730.0,0.12442833]
[1762740262584,0.5246045,105740.0,105730.0,0.15766833]
[1762740262885,0.5246045,105740.0,105730.0,0.24988922]
[1762740263187,0.5246045,105740.0,105730.0,0.09195833]
[1762740263188,0.5946045,105740.0,105730.0,0.09195833]
[1762740263590,0.5946045,105740.0,105730.0,0.06659289]
[1762740263885,0.5946045,105740.0,105730.0,0.04110215]
[1762740264788,0.5946045,105740.0,105730.0,0.0665958]
[1762740266088,0.6077445,105740.0,105730.0,0.0665958]
[1762740267989,0.5377445,105740.0,105730.0,0.0665958]
[1762740268589,0.5946045,105740.0,105730.0,0.24433669]
[1762740269290,0.5946045,105740.0,105730.0,0.21884304]
[1762740270892,0.6077445,105740.0,105730.0,0.21884304]
[1762740272090,0.5946045,105740.0,105730.0,0.21884304]
[1762740272985,0.5946045,105740.0,105730.0,0.12662215]
[1762740273184,0.5946045,105740.0,105730.0,0.21884304]
[1762740273690,0.5377445,105740.0,105730.0,0.16579304]
[1762740274193,0.5377445,105740.0,105730.0,0.21884304]
[1762740274493,0.5377445,105740.0,105730.0,0.19903304]
[1762740274993,0.5377445,105740.0,105730.0,0.10681215]
[1762740276096,0.5377445,105740.0,105730.0,0.03890412]
[1762740276285,0.5377445,105740.0,105730.0,0.01197494]
[1762740276595,0.0946032,105730.0,105720.0,0.05099759]
[1762740276890,0.4554032,105730.0,105720.0,0.23093651]
[1762740277205,0.4554032,105730.0,105720.0,0.07300562]
[1762740277492,0.4554032,105730.0,105720.0,0.05099759]
[1762740277690,0.0946122,105720.0,105710.0,0.05106205]
[1762740277890,0.4554122,105720.0,105710.0,0.05106205]
[1762740279088,0.4554122,105720.0,105710.0,0.06106205]
[1762740279597,0.4554122,105720.0,105710.0,5e-08]
[1762740279801,0.4574122,105720.0,105710.0,5e-08]
[1762740280689,0.0946211,105710.0,105700.0,6e-08]
[1762740280889,0.4554211,105710.0,105700.0,6e-08]
[1762740281782,0.4554211,105710.0,105700.0,0.00800006]
[1762740281984,0.0946301,105700.0,105690.0,0.01990405]
[1762740282190,0.5054852,105700.0,105690.0,0.05457208]
[1762740282399,0.4554301,105700.0,105690.0,0.05457208]
[1762740282696,0.4554301,105700.0,105690.0,0.02210208]
[1762740283490,0.4784301,105700.0,105690.0,0.02210208]
[1762740283691,0.4784301,105700.0,105690.0,0.00229208]
[1762740284194,0.4784301,105700.0,105690.0,0.00729208]
[1762740284595,0.4784301,105700.0,105690.0,0.00229208]
[1762740284791,0.4784301,105700.0,105690.0,0.00329208]
[1762740284792,0.4914301,105700.0,105690.0,0.00329208]
[1762740285110,0.4914301,105700.0,105690.0,0.02310208]
[1762740285396,0.4914301,105700.0,105690.0,0.05557208]
[1762740285697,0.4764301,105700.0,105690.0,0.05657208]
[1762740285888,0.4894301,105700.0,105690.0,0.09081208]
[1762740286392,0.4894301,105700.0,105690.0,0.08881208]
[1762740286589,0.4874301,105700.0,105690.0,0.02510208]
[1762740287200,0.4744301,105700.0,105690.0,0.02410208]
[1762740287392,0.4874301,105700.0,105690.0,0.02510208]
[1762740288090,0.4874301,105700.0,105690.0,0.05757208]
[1762740288286,0.4874301,105700.0,105690.0,0.09159208]
[1762740288797,0.4874301,105700.0,105690.0,0.05757208]
[1762740290302,0.4874301,105700.0,105690.0,0.08967208]
[1762740293600,0.50696076,105700.0,105690.0,0.08967208]
[1762740297600,0.50696076,105700.0,105690.0,0.05757208]
[1762740297902,0.50696076,105700.0,105690.0,0.08967208]
[1762740302210,0.168609,105690.0,105680.0,0.00014141]
[1762740302410,0.1580179,105680.0,105670.0,0.08393]
[1762740302602,0.1580179,105680.0,105670.0,0.08612803]
[1762740302603,0.53836337,105680.0,105670.0,0.08612803]
[1762740303012,0.5188179,105680.0,105670.0,0.17483218]
[1762740303202,0.51891195,105680.0,105670.0,0.17483218]
[1762740303606,0.54346521,105680.0,105670.0,0.17483218]
[1762740304909,0.54346521,105680.0,105670.0,0.08612803]
[1762740305306,0.54746521,105680.0,105670.0,0.08712803]
[1762740313714,0.18666521,105680.0,105670.0,0.08712803]
[1762740315221,0.18666521,105680.0,105670.0,0.22651344]
[1762740315922,0.12329531,105680.0,105670.0,0.32117034]
[1762740316235,0.02864731,105680.0,105670.0,0.45117034]
[1762740316522,0.09478041,105690.0,105680.0,0.1789079]
[1762740316724,0.09478041,105690.0,105680.0,0.56190593]
[1762740316919,0.09478041,105690.0,105680.0,0.46725803]
[1762740317123,0.12596041,105690.0,105680.0,0.08645803]
[1762740317516,0.15815041,105690.0,105680.0,0.08645803]
[1762740317718,0.17115041,105690.0,105680.0,0.08945803]
[1762740317919,0.18715041,105690.0,105680.0,0.08945803]
[1762740320519,0.09251141,105690.0,105680.0,0.18410603]
[1762740320720,0.15529041,105690.0,105680.0,0.08945803]
[1762740320922,0.18377041,105690.0,105680.0,0.08945803]
[1762740321519,0.18377041,105690.0,105680.0,0.18410603]
[1762740322926,0.02914141,105690.0,105680.0,0.18410603]
[1762740323530,0.12378041,105690.0,105680.0,0.18410603]
[1762740324828,0.15529041,105690.0,105680.0,0.24704953]
[1762740325026,0.06065141,105690.0,105680.0,0.34169743]
[1762740325233,0.15529041,105690.0,105680.0,0.34169743]
[1762740325532,0.02914141,105690.0,105680.0,0.93905743]
[1762740325739,0.5654667,105710.0,105700.0,0.07862]
[1762740326035,0.5654667,105710.0,105700.0,0.15961378]
[1762740327329,0.5654667,105710.0,105700.0,0.16161378]
[1762740327533,0.5854667,105710.0,105700.0,0.16161378]
[1762740328034,0.5654667,105710.0,105700.0,0.08081803]
[1762740328236,0.5894667,105710.0,105700.0,0.16161378]
[1762740328428,0.5394116,105710.0,105700.0,0.16161378]
[1762740332038,0.5394116,105710.0,105700.0,0.08281803]
[1762740332230,0.5394116,105710.0,105700.0,0.16161378]
[1762740335336,0.44479,105710.0,105700.0,0.25624388]
[1762740335536,0.5394111,105710.0,105700.0,0.25624388]
[1762740336141,0.5394111,105710.0,105700.0,0.16161378]
[1762740338242,0.5394111,105710.0,105700.0,0.08281803]
[1762740338538,0.5394111,105710.0,105700.0,0.16161378]
[1762740338739,0.024,105710.0,105700.0,0.25624388]
[1762740338933,0.024,105710.0,105700.0,0.63704388]
[1762740339131,0.1786111,105710.0,105700.0,0.63704388]
[1762740339444,0.08399,105710.0,105700.0,0.63704388]
[1762740340239,0.00014141,105720.0,105710.0,0.1732411]
[1762740340444,0.00014141,105720.0,105710.0,0.71383063]
[1762740340748,0.00014141,105720.0,105710.0,0.95031063]
[1762740341145,0.00014141,105720.0,105710.0,0.71383063]
[1762740341442,0.00014141,105720.0,105710.0,0.95031063]
[1762740341643,0.00014141,105720.0,105710.0,0.69383063]
[1762740341830,0.10375361,105720.0,105710.0,0.52141378]
[1762740342036,0.12967425,105720.0,105710.0,0.58643973]
[1762740342235,0.12967425,105720.0,105710.0,0.68106083]
[1762740342546,0.12067425,105720.0,105710.0,0.68006083]
[1762740342840,0.50244425,105720.0,105710.0,0.19061378]
[1762740343235,0.50244425,105720.0,105710.0,0.11199378]
[1762740343945,0.50244425,105720.0,105710.0,0.10699378]
[1762740344444,0.50244425,105720.0,105710.0,0.11499378]
[1762740344633,0.50144425,105720.0,105710.0,0.18161378]
[1762740345038,0.50144425,105720.0,105710.0,0.16761378]
[1762740345536,0.50744425,105720.0,105710.0,0.11341378]
[1762740346137,0.50744425,105720.0,105710.0,0.14283378]
[1762740346337,0.50044425,105720.0,105710.0,0.14583378]
[1762740346746,0.50044425,105720.0,105710.0,0.16761378]
[1762740347446,0.48147425,105720.0,105710.0,0.16761378]
[1762740347839,0.42094,105720.0,105710.0,0.26223488]
[1762740348039,0.38487255,105730.0,105720.0,0.1686722]
[1762740348247,0.05814141,105730.0,105720.0,0.32846173]
[1762740348443,0.05814141,105730.0,105720.0,0.70926173]
[1762740349142,0.05914141,105730.0,105720.0,0.71726173]
[1762740350349,0.05914141,105730.0,105720.0,0.73126173]
[1762740350544,0.03051141,105730.0,105720.0,0.73126173]
[1762740350744,0.00114141,105730.0,105720.0,0.72326173]
[1762740351048,0.00214141,105730.0,105720.0,0.74326173]
[1762740352240,0.00214141,105730.0,105720.0,0.97974173]
[1762740352437,0.5118906,105750.0,105740.0,0.07289]
[1762740352639,0.5118853,105750.0,105740.0,0.15388378]
[1762740352843,0.0565,105750.0,105740.0,0.24847798]
[1762740353038,0.5118819,105760.0,105750.0,0.07289]
[1762740353238,0.1228964,105760.0,105750.0,0.15388378]
[1762740353444,0.1510764,105760.0,105750.0,0.15388378]
[1762740354240,0.0565,105760.0,105750.0,0.15388378]
[1762740354550,0.1510764,105760.0,105750.0,0.15388378]
[1762740354750,0.1600764,105760.0,105750.0,0.15488378]
[1762740355844,0.5327464,105760.0,105750.0,0.15488378]
[1762740356147,0.5327464,105760.0,105750.0,0.03169803]
[1762740356544,0.5327464,105760.0,105750.0,0.00319803]
[1762740356740,0.5327464,105760.0,105750.0,0.001]
[1762740356940,1.1327464,105760.0,105750.0,0.001]
[1762740359647,0.5327464,105760.0,105750.0,0.001]
[1762740359949,1.1327464,105760.0,105750.0,0.001]
[1762740361249,0.1629553,105750.0,105740.0,0.00014141]
[1762740361443,0.5237553,105750.0,105740.0,0.00014141]
[1762740363262,0.1511032,105730.0,105720.0,0.2122194]
[1762740363446,0.5119032,105730.0,105720.0,0.21441743]
[1762740363749,0.5280632,105730.0,105720.0,0.00219803]
[1762740363940,0.8888632,105730.0,105720.0,0.00219803]
[1762740364144,0.5119032,105730.0,105720.0,0.30890953]
[1762740364448,0.1531032,105730.0,105720.0,0.24829743]
[1762740364645,0.5139032,105730.0,105720.0,0.24829743]
[1762740365756,0.002,105730.0,105720.0,0.72370963]
[1762740365945,0.002,105730.0,105720.0,0.70370963]
[1762740366454,0.0966032,105730.0,105720.0,0.60909743]
[1762740366658,0.0966032,105730.0,105720.0,0.70370963]
[1762740366852,0.0966032,105730.0,105720.0,0.29597093]
[1762740367654,0.1249232,105730.0,105720.0,0.20135873]
[1762740367844,0.5139032,105730.0,105720.0,0.20135873]
[1762740368254,0.1531032,105730.0,105720.0,0.20135873]
[1762740369359,0.5139032,105730.0,105720.0,0.20135873]
[1762740371153,0.5139032,105730.0,105720.0,0.18513873]
[1762740371154,0.5238932,105730.0,105720.0,0.18513873]
[1762740371754,0.5238932,105730.0,105720.0,0.20135873]
[1762740374157,0.5238932,105730.0,105720.0,0.10908803]
[1762740374351,0.5238932,105730.0,105720.0,0.20135873]
[1762740375763,0.5238932,105730.0,105720.0,0.10908803]
[1762740375956,0.5238932,105730.0,105720.0,0.20135873]
[1762740376962,0.5238932,105730.0,105720.0,0.28629079]
[1762740377151,0.5238932,105730.0,105720.0,0.15329941]
[1762740377355,0.5238932,105730.0,105720.0,0.12479941]
[1762740378253,0.5238932,105730.0,105720.0,0.03619803]
[1762740378656,0.5238932,105730.0,105720.0,0.12479941]
[1762740380062,0.5238932,105730.0,105720.0,0.12260138]
[1762740380360,0.0946122,105720.0,105710.0,0.08874279]
[1762740380558,0.4725322,105720.0,105710.0,0.08874279]
[1762740381156,0.4725322,105720.0,105710.0,0.00014141]
[1762740381357,0.4725322,105720.0,105710.0,0.08874279]
[1762740381560,0.4725322,105720.0,105710.0,0.10374279]
[1762740381960,0.4725322,105720.0,105710.0,0.01514141]
[1762740382158,0.4745322,105720.0,105710.0,0.11074279]
[1762740382752,0.4725322,105720.0,105710.0,0.08874279]
[1762740382954,0.1117411,105710.0,105700.0,0.06809401]
[1762740383156,0.4725411,105710.0,105700.0,0.15889342]
[1762740383660,0.4725411,105710.0,105700.0,0.22879342]
[1762740384661,0.4975411,105710.0,105700.0,0.22979342]
[1762740386961,0.1196211,105710.0,105700.0,0.3183948]
[1762740387661,0.1196211,105710.0,105700.0,0.22979342]
[1762740388567,0.1196211,105710.0,105700.0,0.32442352]
[1762740388864,0.1196211,105710.0,105700.0,0.7738249]
[1762740389268,0.025,105710.0,105700.0,0.7938249]
[1762740389970,0.1196211,105710.0,105700.0,0.7938249]
[1762740390270,0.025,105710.0,105700.0,0.7938249]
[1762740390771,0.025,105710.0,105700.0,1.0303449]
[1762740391181,0.025,105710.0,105700.0,0.7938249]
[1762740391467,0.1196211,105710.0,105700.0,1.0303449]
[1762740391672,0.1196211,105710.0,105700.0,0.6991948]
[1762740391971,0.1196211,105710.0,105700.0,1.0303449]
[1762740392166,0.025,105710.0,105700.0,0.7938249]
[1762740392471,0.025,105710.0,105700.0,1.0303449]
[1762740392869,0.1196211,105710.0,105700.0,1.0303449]
[1762740393173,0.1367411,105710.0,105700.0,0.59059342]
[1762740393668,0.1196211,105710.0,105700.0,0.59059342]
[1762740393867,0.1367411,105710.0,105700.0,0.59059342]
[1762740398287,0.1281811,105710.0,105700.0,0.59059342]
[1762740399085,0.1367411,105710.0,105700.0,0.59059342]
[1762740400181,0.4975411,105710.0,105700.0,0.22979342]
[1762740400381,0.4975411,105710.0,105700.0,0.14119204]
[1762740400581,0.4975411,105710.0,105700.0,0.22979342]
[1762740403384,0.4804211,105710.0,105700.0,0.32442352]
[1762740403597,0.1196211,105710.0,105700.0,0.22979342]
[1762740403789,0.1196212,105710.0,105700.0,0.22979342]
[1762740404096,0.025,105710.0,105700.0,0.7738249]
[1762740404798,0.025,105710.0,105700.0,0.7938249]
[1762740405196,0.1196212,105710.0,105700.0,0.6791948]
[1762740405489,0.1196212,105710.0,105700.0,0.7938249]
[1762740405883,0.1196212,105710.0,105700.0,0.7738249]
[1762740406895,0.1196212,105710.0,105700.0,0.6791948]
[1762740407488,0.1196212,105710.0,105700.0,0.7039249]
[1762740407693,0.1196212,105710.0,105700.0,0.7239249]
[1762740409196,0.025,105710.0,105700.0,0.7239249]
[1762740410598,0.1196211,105710.0,105700.0,0.7239249]
[1762740410798,0.025,105710.0,105700.0,0.7239249]
[1762740411706,0.09475951,105720.0,105710.0,0.06503]
[1762740412003,0.09475951,105720.0,105710.0,0.24443079]
[1762740412305,0.12014951,105720.0,105710.0,0.24443079]
[1762740412602,0.14510951,105720.0,105710.0,0.24443079]
[1762740412803,0.16010951,105720.0,105710.0,0.24643079]
[1762740413002,0.16610951,105720.0,105710.0,0.24643079]
[1762740413203,0.16610951,105720.0,105710.0,0.60723079]
[1762740413605,0.15210951,105720.0,105710.0,0.60923079]
[1762740414105,0.14610951,105720.0,105710.0,0.61023079]
[1762740415003,0.14510951,105720.0,105710.0,0.60623079]
[1762740415300,0.00214141,105720.0,105710.0,0.63023079]
[1762740415505,0.14710361,105720.0,105710.0,0.45302803]
[1762740415693,0.50790361,105720.0,105710.0,0.27043079]
[1762740415899,0.50690361,105720.0,105710.0,0.25743079]
[1762740416300,0.14610361,105720.0,105710.0,0.26643079]
[1762740416795,0.50690361,105720.0,105710.0,0.25543079]
[1762740416999,0.50690361,105720.0,105710.0,0.25743079]
[1762740417502,0.14610361,105720.0,105710.0,0.25743079]
[1762740417704,0.50690361,105720.0,105710.0,0.25743079]
[1762740418009,0.14610361,105720.0,105710.0,0.25743079]
[1762740418408,0.50690361,105720.0,105710.0,0.25743079]
[1762740418910,0.14610361,105720.0,105710.0,0.25743079]
[1762740419210,0.50690361,105720.0,105710.0,0.25743079]
[1762740419607,0.14610361,105720.0,105710.0,0.25743079]
[1762740420196,0.50690361,105720.0,105710.0,0.25743079]
[1762740420611,0.14610361,105720.0,105710.0,0.25743079]
[1762740421004,0.50690361,105720.0,105710.0,0.25743079]
[1762740421797,0.51290361,105720.0,105710.0,0.06523803]
[1762740422002,0.51290361,105720.0,105710.0,0.15383941]
[1762740423208,0.51290361,105720.0,105710.0,0.013]
[1762740423514,0.51290361,105720.0,105710.0,0.10160138]
[1762740424112,1.11290361,105720.0,105710.0,0.10160138]
[1762740424417,0.1568411,105710.0,105700.0,7.401e-05]
[1762740424714,0.5176411,105710.0,105700.0,0.08867539]
[1762740425506,0.5176411,105710.0,105700.0,0.09967539]
[1762740425808,0.5196411,105710.0,105700.0,0.11967539]
[1762740426309,0.5176411,105710.0,105700.0,0.09967539]
[1762740426616,0.5186411,105710.0,105700.0,0.09787342]
[1762740426808,0.5186411,105710.0,105700.0,0.09987342]
[1762740427009,0.5186411,105710.0,105700.0,0.09007845]
[1762740427817,0.5186411,105710.0,105700.0,0.01127204]
[1762740429616,0.5186411,105710.0,105700.0,0.09007845]
[1762740433819,0.5186411,105710.0,105700.0,0.01127204]
[1762740435922,0.5686962,105710.0,105700.0,0.01127204]
[1762740437720,0.1597501,105700.0,105690.0,5e-08]
[1762740438023,0.52274813,105700.0,105690.0,5e-08]
[1762740438409,0.1450069,105670.0,105660.0,0.07391595]
[1762740438613,0.1450069,105670.0,105650.0,0.0507084]
[1762740438614,0.1564159,105660.0,105650.0,0.0507084]
[1762740438808,0.15861393,105660.0,105650.0,0.03400555]
[1762740439019,0.15861393,105660.0,105650.0,0.16347196]
[1762740439220,0.14674393,105660.0,105650.0,0.14542641]
[1762740439421,0.12148393,105660.0,105650.0,0.14542641]
[1762740439615,0.50754393,105660.0,105650.0,0.14542641]
[1762740439816,0.52346393,105660.0,105650.0,0.12946641]
[1762740440620,0.52346393,105660.0,105650.0,0.14546641]
[1762740440816,0.52546393,105660.0,105650.0,0.14546641]
[1762740441125,0.52546393,105660.0,105650.0,0.15446641]
[1762740441326,0.52546393,105660.0,105650.0,0.07566]